fUSD/lending_fUSD_20260412
["ID","MTS","AMOUNT","RATE_DAILY","PERIOD"]
[420302561,1775943046032,-500.0,0.00015128,2]
[420302562,1775943046053,-343.199996,0.00015128,2]
[420302609,1775943047812,-156.800004,0.00015128,2]
[420302610,1775943047862,-500.0,0.00015128,2]
[420302611,1775943047884,-500.0,0.00015128,2]
[420302612,1775943047895,-412.26508119,0.00015128,2]
[420302613,1775943047913,-500.0,0.00015128,2]
[420302614,1775943047925,-500.0,0.00015128,2]
[420302615,1775943047934,-500.0,0.00015128,2]
[420302616,1775943047952,-500.0,0.00015128,2]
[420302617,1775943047961,-500.0,0.00015128,2]
[420302618,1775943047971,-348.31581035,0.00015128,2]
[420302619,1775943104605,1461.0,0.0003013,120]
[420302620,1775943162504,362.0,0.0003013,120]
[420302621,1775943200035,500.0,0.00025883,120]
[420302622,1775943200306,500.0,0.00027616,120]
[420302623,1775943200867,500.0,0.00029349,120]
[420302625,1775943915378,-166.33063082,0.00010398,2]
[420302626,1775943915401,-282.0,0.00010398,2]
[420302627,1775943915422,-1142.41239139,0.00010423,2]
[420302628,1775943915444,-250.0,0.00010448,2]
[420302629,1775943915467,-151.0,0.00010494,2]
[420302630,1775943915491,-151.0,0.00010494,2]
[420302631,1775943915532,-151.0,0.00010494,2]
[420302632,1775943915562,-300.0,0.00010499,2]
[420302633,1775943915653,-300.0,0.00010499,2]
[420302634,1775943915743,-1200.0,0.00010499,2]
[420302635,1775943915780,-300.0,0.00010499,2]
[420302636,1775943915816,-10262.25697779,0.000105,2]
[420302638,1775944147290,1000.0,0.00030136,120]
[420302642,1775944232301,-303.5223806,0.0001,2]
[420302643,1775944232311,-500.0,0.00010298,2]
[420302644,1775944232328,-300.0,0.00010499,2]
[420302645,1775944232348,-1200.0,0.00010499,2]
[420302646,1775944232358,-874.31894458,0.00010499,2]
[420302647,1775944232400,-325.68105542,0.00010499,2]
[420302648,1775944232410,-27374.49256793,0.000105,2]
[420302649,1775944232425,-34937.53775428,0.000105,2]
[420302651,1775944232446,-166.33063082,0.00010502,2]
[420302653,1775944232458,-3109.257,0.00010602,2]
[420302655,1775944232483,-177.827,0.00010602,2]
[420302657,1775944232499,-193.0,0.00011,2]
[420302659,1775944232515,-5000.0,0.00011,2]
[420302661,1775944232550,-195.0,0.00011,2]
[420302663,1775944232568,-195.0,0.00011,2]
[420302665,1775944232582,-250.0,0.00011,2]
[420302667,1775944232597,-195.0,0.00011,2]
[420302669,1775944232627,-4727.8629485,0.00011,2]
[420302672,1775944232662,-272.1370515,0.00011,2]
[420302674,1775944232674,-150.0,0.000115,2]
[420302676,1775944232687,-420.0,0.00011543,2]
[420302678,1775944232717,-921.84221655,0.00011543,2]
[420302680,1775944232749,-478.15778345,0.00011543,2]
[420302682,1775944232763,-63.86529194,0.00011549,2]
[420302685,1775944232781,-186.13470806,0.00011549,2]
[420302687,1775944232801,-304.90134164,0.00011549,2]
[420302689,1775944232813,-342.48315084,0.00011549,2]
[420302695,1775944232903,-1032.61550752,0.00011549,2]
[420302697,1775944232913,-193.0,0.0001155,2]
[420302699,1775944232925,-1575.08520184,0.0001155,2]
[420302702,1775944232948,-468.75595281,0.0001155,2]
[420302704,1775944232963,-918.18884584,0.0001155,2]
[420302706,1775944232989,-195.0,0.0001155,2]
[420302708,1775944233001,-195.0,0.0001155,2]
[420302710,1775944233019,-600.0,0.0001155,2]
[420302712,1775944233050,-600.0,0.0001155,2]
[420302715,1775944233063,-8.82366985,0.0001155,2]
[420302717,1775944233094,-582.9058735,0.0001155,2]
[420302719,1775944233124,-8.27045665,0.0001155,2]
[420302721,1775944233140,-535.74954335,0.0001155,2]
[420302729,1775944234666,-64.25045665,0.0001155,2]
[420302730,1775944234704,-600.0,0.0001155,2]
[420302731,1775944234737,-250.0,0.0001155,2]
[420302732,1775944234768,-155.03,0.00011683,2]
[420302733,1775944234778,-5089.45921845,0.00012135,2]
[420302734,1775944234800,-151.0,0.00012365,2]
[420302735,1775944234829,-152.0,0.00012442,7]
[420302736,1775944234838,-377.0,0.00012691,2]
[420302737,1775944234865,-761.2603249,0.00012704,2]
[420302738,1775944234899,-506.7396751,0.00012704,2]
[420302739,1775944234919,-171.1321,0.000128,2]
[420302740,1775944234931,-153.4342422,0.00013015,2]
[420302741,1775944234952,-335.03356611,0.00013213,2]
[420302742,1775944234979,-1052.69,0.00013339,2]
[420302743,1775944234994,-3000.0,0.00013408,2]
[420302744,1775944235010,-1700.0,0.00013408,2]
[420302745,1775944235023,-5237.0,0.00013421,2]
[420302746,1775944235035,-200.0,0.00013426,2]
[420302747,1775944235053,-500.0,0.00013527,2]
[420302748,1775944235067,-714.41,0.00013548,2]
[420302749,1775944235078,-150.0,0.00013549,2]
[420302750,1775944235104,-165.53,0.00013554,2]
[420302751,1775944235130,-1600.0,0.00013566,2]
[420302752,1775944235142,-183.48,0.00013699,2]
[420302753,1775944235155,-164.41,0.00013771,2]
[420302754,1775944235170,-409.0,0.00013781,2]
[420302755,1775944235181,-195.2413,0.00014,2]
[420302756,1775944235191,-829.75631925,0.00014127,2]
[420302757,1775944235209,-183.48,0.00014384,2]
[420302758,1775944235222,-6888.0,0.0001467,2]
[420302759,1775944235232,-1226.65901702,0.0001467,2]
[420302760,1775944235249,-323.51091595,0.00014711,2]
[420302761,1775944235265,-3000.0,0.00014778,2]
[420302762,1775944235275,-1700.0,0.00014778,2]
[420302763,1775944235290,-1000.0,0.00014827,2]
[420302764,1775944235302,-2291.21,0.00014853,2]
[420302765,1775944235314,-164.41,0.00014907,2]
[420302766,1775944235324,-1702.85,0.00015057,2]
[420302767,1775944235338,-183.48,0.00015068,2]
[420302768,1775944235367,-434.38714647,0.00015084,2]
[420302769,1775944235377,-5183.61453153,0.0001511,2]
[420302770,1775944235399,-181.4939,0.0001511,2]
[420302771,1775944235422,-1985.189,0.00015176,2]
[420302772,1775944235432,-415.0,0.00015176,2]
[420302773,1775944235453,-3774.0,0.00015176,2]
[420302774,1775944235463,-500.0,0.00015189,2]
[420302775,1775944235473,-343.199996,0.00015189,2]
[420302776,1775944235487,-460.6647271,0.0001521,2]
[420302777,1775944235497,-24522.2841883,0.0001521,2]
[420302778,1775944235506,-849.6719467,0.0001521,2]
[420302779,1775944235516,-39277.9981689,0.0001521,2]
[420302780,1775944235536,-1600.0,0.00015262,2]
[420302781,1775944235547,-222.747,0.000153,2]
[420302782,1775944235557,-905.99640247,0.00015359,2]
[420302783,1775944235567,-207.76128198,0.00015381,2]
[420302784,1775944235585,-197.0,0.00015403,2]
[420302785,1775944235595,-270.63789677,0.00015439,2]
[420302786,1775944235605,-168.0,0.00015443,2]
[420302787,1775944235621,-2000.0,0.00015475,2]
[420302788,1775944235634,-200.0,0.00015475,2]
[420302789,1775944235645,-163.5021,0.0001548,2]
[420302790,1775944235666,-500.0,0.00015499,2]
[420302791,1775944235676,-900.0,0.000155,5]
[420302792,1775944235688,-383.94982387,0.000155,2]
[420302793,1775944235722,-5000.0,0.000155,2]
[420302794,1775944235743,-151.0,0.000155,2]
[420302795,1775944235773,-784.0,0.000155,2]
[420302796,1775944235798,-9501.41833632,0.000155,2]
[420302797,1775944235807,-2363.30639703,0.000155,2]
[420302798,1775944235817,-307.0,0.000155,2]
[420302799,1775944235833,-695.03762574,0.000155,2]
[420302800,1775944235849,-8781.2451522,0.000155,2]
[420302801,1775944235858,-168.0,0.00015517,2]
[420302802,1775944235867,-250.0,0.00015534,2]
[420302803,1775944235879,-250.0,0.00015534,2]
[420302804,1775944235894,-310.797199,0.00015582,7]
[420302805,1775944235903,-186.876726,0.00015582,2]
[420302806,1775944235915,-187.4234847,0.0001559,2]
[420302807,1775944235929,-500.0,0.00015597,2]
[420302808,1775944235945,-500.0,0.00015598,2]
[420302809,1775944235955,-155.0,0.00015599,2]
[420302810,1775944235973,-345.70103164,0.00015599,2]
[420302811,1775944235983,-329.60127076,0.00015599,2]
[420302820,1775944238309,-150.0,0.0001,2]
[420302821,1775944238334,-365.9530991,0.0001,2]
[420302822,1775944238436,-164.99381744,0.0001,2]
[420302823,1775944238446,-530.94691654,0.00010298,2]
[420302824,1775944238464,-25.84926602,0.00015598,2]
[420302825,1775944238488,-474.15073398,0.00015598,2]
[420302826,1775944238501,-314.75577485,0.00015598,2]
[420302827,1775944238511,-170.39872924,0.00015599,2]
[420302828,1775944238523,-500.0,0.00015599,2]
[420302829,1775944238541,-206.49011981,0.00015599,2]
[420302830,1775944238552,-500.0,0.00015599,2]
[420302831,1775944238563,-500.0,0.00015599,2]
[420302832,1775944238581,-189.51146061,0.00015599,2]
[420302833,1775944238591,-177.86566421,0.00015599,2]
[420302834,1775944238601,-116.43953351,0.00015599,2]
[420302844,1775944240542,-530.94691654,0.00010499,2]
[420302845,1775944240564,-530.94691654,0.000105,2]
[420302846,1775944240577,-562.602,0.00015176,2]
[420302847,1775944240586,-77.21630016,0.00015599,2]
[420302848,1775944240609,-151.0,0.00015599,2]
[420302849,1775944240623,-151.0,0.00015599,2]
[420302850,1775944240660,-151.0,0.00015599,2]
[420302851,1775944240672,-151.0,0.00015599,2]
[420302852,1775944240703,-327.01017138,0.00015599,2]
[420302853,1775944240890,-292.04688833,0.00015599,2]
[420302854,1775944240920,-408.78832607,0.00015599,2]
[420302855,1775944241158,-562.95676222,0.00015287,2]
[420302872,1775944246889,-456.96597722,0.00015287,2]
[420302873,1775944246904,-81.61534833,0.00015287,2]
[420302874,1775944246924,-576.41867445,0.00015287,2]
[420302875,1775944246956,-433.44628469,0.00015287,2]
[420302876,1775944246965,-1114.8555999,0.00015287,2]
[420302877,1775944246996,-1147.34588486,0.00015287,2]
[420302878,1775944247033,-91.21167393,0.00015599,2]
[420302879,1775944247043,-500.0,0.00015599,2]
[420302880,1775944247066,-500.0,0.00015599,2]
[420302881,1775944247088,-154.57919736,0.00015599,2]
[420302882,1775944247097,-2042.0,0.00015599,2]
[420302883,1775944247117,-1243.0,0.00015599,2]
[420302884,1775944247128,-154.0,0.000156,5]
[420302885,1775944247138,-152.0,0.000156,5]
[420302886,1775944247153,-3315.99892496,0.000156,2]
[420302887,1775944247463,-0.15,0.00015287,2]
[420302888,1775944247475,-1111.85622585,0.00015287,2]
[420302889,1775944247493,-93094.93638966,0.000156,2]
[420302890,1775944397568,500.0,0.00030135,120]
[420302892,1775944499675,500.0,0.0003013,120]
[420302899,1775944998131,500.0,0.00030135,120]
[420302900,1775945323753,500.0,0.00030136,120]
[420302901,1775945391344,200.0,0.00030136,120]
[420302902,1775945430608,150.0,0.00030136,120]
[420302910,1775945432323,-444.0,0.000103,2]
[420302911,1775945432418,-2060.33272966,0.000103,2]
[420302912,1775945432585,-6444.33781323,0.000103,2]
[420302913,1775945432705,-26331.58503984,0.000103,2]
[420302916,1775945432716,-2074.76557522,0.000103,2]
[420302917,1775945432731,-38809.46484205,0.000103,2]
[420302918,1775945432746,-317.695,0.00010393,2]
[420302920,1775945432767,-419.93574845,0.00010394,2]
[420302922,1775945432776,-156.73307116,0.00010399,2]
[420302924,1775945432786,-150.0,0.00010399,2]
[420302925,1775945432807,-156.73307116,0.000104,2]
[420302928,1775945432817,-3203.837,0.00010602,2]
[420302929,1775945432831,-182.362,0.00010602,2]
[420302931,1775945432847,-510.08259758,0.00010673,2]
[420302933,1775945432857,-200.0,0.00010694,2]
[420302935,1775945432873,-151.0,0.00010694,2]
[420302936,1775945432893,-151.0,0.00010694,2]
[420302938,1775945432903,-151.0,0.00010694,2]
[420302940,1775945432917,-151.0,0.00010694,2]
[420302942,1775945432939,-151.0,0.00010694,2]
[420302944,1775945432949,-151.0,0.00010694,2]
[420302946,1775945432959,-151.0,0.00010694,2]
[420302947,1775945432977,-151.0,0.00010694,2]
[420302948,1775945432986,-151.0,0.00010694,2]
[420302949,1775945432997,-151.0,0.00010694,2]
[420302950,1775945433006,-151.0,0.00010694,2]
[420302951,1775945433024,-151.0,0.00010694,2]
[420302952,1775945433034,-500.0,0.00010699,2]
[420302953,1775945433046,-288.64029142,0.00010699,2]
[420302954,1775945433057,-500.0,0.00010699,2]
[420302955,1775945433082,-500.0,0.00010699,2]
[420302956,1775945433092,-500.0,0.00010699,2]
[420302957,1775945433101,-500.0,0.00010699,2]
[420302958,1775945433132,-500.0,0.00010699,2]
[420302959,1775945433146,-491.64459473,0.00010699,2]
[420302960,1775945433175,-8.35540527,0.00010699,2]
[420302961,1775945433185,-500.0,0.00010699,2]
[420302962,1775945433217,-239.36552142,0.00010699,2]
[420302963,1775945433244,-500.0,0.00010699,2]
[420302964,1775945433256,-500.0,0.00010699,2]
[420302965,1775945433266,-500.0,0.00010699,2]
[420302966,1775945433287,-637.70728015,0.00010699,2]
[420302967,1775945433299,-112375.72153799,0.000107,2]
[420302968,1775945433314,-20144.04801351,0.000107,2]
[420302970,1775945438500,-1165.45033526,0.000107,2]
[420302971,1775945438600,-1285.15448329,0.000107,2]
[420302972,1775945438694,-479.436717,0.000107,2]
[420302973,1775945438723,-3521.18509526,0.000107,2]
[420302974,1775945438838,-1741.48362425,0.000107,2]
[420302977,1775945438879,-925.69761569,0.000107,2]
[420302979,1775945438892,-251.76529873,0.000107,2]
[420302995,1775945440731,-13801.79304624,0.000107,2]
[420302997,1775945440754,-2500.0,0.000107,2]
[420303000,1775945440768,-713.67957342,0.000107,2]
[420303005,1775945440997,-2190.16651983,0.000107,2]
[420303006,1775945441006,-500.0,0.00010959,2]
[420303007,1775945441024,-312.46999951,0.00011,2]
[420303008,1775945441036,-8725.5167639,0.00011099,2]
[420303009,1775945441045,-195.0,0.0001133,2]
[420303010,1775945441057,-195.0,0.0001133,2]
[420303011,1775945441066,-600.0,0.0001133,2]
[420303012,1775945441080,-600.0,0.0001133,2]
[420303013,1775945441090,-600.0,0.0001133,2]
[420303014,1775945441099,-600.0,0.0001133,2]
[420303015,1775945441109,-600.0,0.0001133,2]
[420303016,1775945441119,-250.0,0.0001133,2]
[420303017,1775945441128,-150.0,0.000114,2]
[420303018,1775945441137,-250.0,0.00011432,2]
[420303019,1775945441149,-156.73307116,0.00011434,30]
[420303020,1775945441158,-2181.64582918,0.00011656,2]
[420303021,1775945441167,-3974.96981903,0.00012441,2]
[420303022,1775945441179,-171.0691,0.000127,2]
[420303023,1775945441189,-150.26,0.00012745,7]
[420303024,1775945441198,-3000.0,0.00013408,2]
[420303025,1775945441208,-1700.0,0.00013408,2]
[420303026,1775945441217,-156.73307116,0.00013682,30]
[420303027,1775945441229,-300.86613662,0.00013698,2]
[420303028,1775945441240,-150.0,0.00013699,2]
[420303029,1775945441249,-166.66,0.00013699,2]
[420303030,1775945441258,-335.03356611,0.00013892,2]
[420303031,1775945441271,-166.66,0.00013988,2]
[420303032,1775945441281,-195.0976,0.00014,2]
[420303033,1775945441290,-12127.92951119,0.00014074,2]
[420303034,1775945441300,-10067.29,0.0001415,2]
[420303035,1775945441315,-247.18,0.00014174,2]
[420303036,1775945441324,-686.63,0.00014178,2]
[420303037,1775945441333,-2000.0,0.00014225,2]
[420303038,1775945441343,-239.25654988,0.00014267,4]
[420303039,1775945441361,-166.66,0.00014276,2]
[420303040,1775945441370,-12127.92951116,0.00014277,2]
[420303041,1775945441380,-986.35,0.00014384,2]
[420303042,1775945441402,-12127.92951116,0.00014481,2]
[420303043,1775945441412,-166.66,0.00014564,2]
[420303044,1775945441425,-3974.96981899,0.00014578,2]
[420303045,1775945441441,-185.02261272,0.00014657,2]
[420303046,1775945441450,-6888.0,0.00014657,2]
[420303047,1775945441459,-1226.65901702,0.00014657,2]
[420303048,1775945441475,-500.0,0.00014657,2]
[420303049,1775945441495,-500.0,0.00014657,2]
[420303050,1775945441504,-500.0,0.00014657,2]
[420303051,1775945441517,-500.0,0.00014657,2]
[420303053,1775945441537,-500.0,0.00014657,2]
[420303055,1775945441547,-500.0,0.00014657,2]
[420303057,1775945441558,-167.09443384,0.00014657,2]
[420303059,1775945441570,-174.61919141,0.00014657,2]
[420303061,1775945441585,-986.35,0.00014658,2]
[420303063,1775945441600,-12127.92951116,0.00014684,2]
[420303065,1775945441610,-3000.0,0.00014778,2]
[420303067,1775945441621,-1700.0,0.00014778,2]
[420303069,1775945441632,-1149.43229,0.0001482,2]
[420303071,1775945441661,-2061.78576,0.0001482,2]
[420303073,1775945441671,-166.66,0.00014853,2]
[420303075,1775945441693,-6121.884,0.00014863,2]
[420303077,1775945441719,-12127.92951116,0.00014887,2]
[420303078,1775945441728,-984.72,0.00014932,2]
[420303079,1775945441738,-177.41,0.00015068,2]
[420303080,1775945441757,-12127.92951116,0.00015091,2]
[420303081,1775945441771,-1000.0,0.0001511,2]
[420303082,1775945441779,-382.0,0.00015133,2]
[420303083,1775945441790,-166.66,0.00015141,2]
[420303084,1775945441811,-151.0,0.00015196,2]
[420303085,1775945441820,-1347.0,0.00015196,2]
[420303086,1775945441830,-1047.0,0.00015196,2]
[420303087,1775945441843,-622.0,0.00015196,2]
[420303088,1775945441857,-3525.0,0.00015196,2]
[420303089,1775945441868,-1264.0,0.00015196,2]
[420303090,1775945441877,-1218.0,0.00015196,2]
[420303091,1775945441894,-926.0,0.00015196,2]
[420303092,1775945441909,-2514.058,0.00015196,2]
[420303093,1775945441920,-3774.0,0.00015196,2]
[420303094,1775945441932,-382.0,0.000152,2]
[420303095,1775945441957,-181.08010149,0.00015205,2]
[420303096,1775945441993,-151.25,0.00015237,2]
[420303097,1775945442002,-1056.73872106,0.00015287,2]
[420303098,1775945442023,-1006.41950405,0.00015287,2]
[420303099,1775945442043,-1036.00698795,0.00015287,2]
[420303100,1775945442054,-1023.69818637,0.00015288,2]
[420303101,1775945442085,-1091.14128412,0.00015288,2]
[420303102,1775945442095,-1071.0859766,0.00015288,2]
[420303103,1775945442119,-1036.59711258,0.00015288,2]
[420303104,1775945442130,-1004.29706552,0.00015288,2]
[420303105,1775945442142,-1113.25057895,0.00015288,2]
[420303106,1775945442183,-1132.01708624,0.00015288,2]
[420303107,1775945442194,-1216.77636817,0.00015288,2]
[420303108,1775945442215,-241.103281,0.00015288,7]
[420303109,1775945442245,-186.876726,0.00015288,2]
[420303110,1775945442254,-175.022313,0.00015288,7]
[420303111,1775945442278,-12127.92951116,0.00015294,2]
[420303112,1775945442291,-222.5012,0.000153,2]
[420303113,1775945442306,-382.0,0.00015356,2]
[420303114,1775945442347,-232.67669,0.00015437,2]
[420303115,1775945442367,-1277.77778,0.0001544,2]
[420303116,1775945442388,-1277.77778,0.0001544,2]
[420303117,1775945442409,-1277.77778,0.0001544,2]
[420303118,1775945442427,-10000.0,0.00015444,2]
[420303119,1775945442460,-346.58992725,0.00015448,2]
[420303120,1775945442475,-39509.87168047,0.0001545,2]
[420303121,1775945442488,-500.0,0.00015459,2]
[420303122,1775945442507,-500.00697267,0.00015473,2]
[420303123,1775945442528,-386.06349859,0.00015473,2]
[420303124,1775945442537,-500.0,0.00015473,2]
[420303125,1775945442562,-2000.0,0.00015475,2]
[420303126,1775945442581,-500.0,0.00015478,2]
[420303127,1775945442590,-500.0,0.00015478,2]
[420303128,1775945442600,-500.0,0.00015478,2]
[420303129,1775945442609,-500.0,0.00015478,2]
[420303130,1775945442621,-500.0,0.00015478,2]
[420303131,1775945442630,-500.0,0.00015478,2]
[420303132,1775945442641,-577.85,0.00015478,2]
[420303133,1775945442650,-500.0,0.00015478,2]
[420303134,1775945442665,-500.0,0.00015478,2]
[420303135,1775945442676,-500.0,0.00015478,2]
[420303136,1775945442685,-500.0,0.00015478,2]
[420303137,1775945442694,-500.0,0.00015478,2]
[420303138,1775945442708,-183.58723642,0.00015478,2]
[420303139,1775945442718,-1037.55,0.00015478,2]
[420303140,1775945442727,-500.0,0.00015478,2]
[420303141,1775945442736,-50603.746955,0.00015479,2]
[420303142,1775945442748,-151.0,0.00015479,2]
[420303143,1775945442761,-849.6719467,0.00015479,2]
[420303144,1775945442770,-3907.6415044,0.00015479,2]
[420303145,1775945442781,-5257.6504487,0.00015479,2]
[420303146,1775945442797,-8421.3192827,0.00015479,2]
[420303147,1775945442808,-163.5021,0.0001548,2]
[420303148,1775945442817,-12127.92951116,0.00015497,2]
[420303149,1775945442829,-500.0,0.00015499,2]
[420303150,1775945442845,-500.0,0.00015499,2]
[420303151,1775945442856,-167.0,0.000155,2]
[420303152,1775945442867,-539.86771841,0.000155,2]
[420303153,1775945442883,-1000.0,0.000155,2]
[420303154,1775945442893,-313.0,0.000155,2]
[420303155,1775945442908,-5000.0,0.000155,2]
[420303156,1775945442921,-7805.5512464,0.000155,2]
[420303157,1775945442931,-761.00336156,0.000155,2]
[420303158,1775945442944,-307.0,0.000155,2]
[420303159,1775945442955,-2363.30639703,0.000155,2]
[420303160,1775945442967,-3052.8,0.00015507,2]
[420303161,1775945442977,-250.0,0.00015512,2]
[420303162,1775945442990,-250.0,0.00015512,2]
[420303163,1775945443007,-250.0,0.00015512,2]
[420303164,1775945443016,-933.0,0.00015533,2]
[420303165,1775945443025,-2046.0,0.00015533,2]
[420303166,1775945443048,-382.0,0.00015533,2]
[420303167,1775945443064,-551.0,0.00015539,2]
[420303168,1775945443074,-163.74096597,0.00015573,2]
[420303169,1775945443092,-500.0,0.00015573,2]
[420303170,1775945443111,-500.0,0.00015573,2]
[420303171,1775945443126,-500.0,0.00015573,2]
[420303172,1775945443141,-500.0,0.00015573,2]
[420303173,1775945443160,-500.0,0.00015573,2]
[420303174,1775945443173,-211.15785493,0.00015573,2]
[420303175,1775945443211,-500.0,0.00015573,2]
[420303176,1775945443220,-500.0,0.00015573,2]
[420303178,1775945443252,-500.0,0.00015573,2]
[420303180,1775945443262,-500.0,0.00015573,2]
[420303181,1775945443272,-500.0,0.00015573,2]
[420303183,1775945443298,-500.0,0.00015573,2]
[420303185,1775945443308,-500.1651315,0.00015573,2]
[420303186,1775945443317,-500.0,0.00015573,2]
[420303188,1775945443355,-500.0,0.00015573,2]
[420303191,1775945443370,-599.44323275,0.00015573,2]
[420303193,1775945443397,-561.61000035,0.00015573,2]
[420303195,1775945443407,-160.8815483,0.00015573,2]
[420303197,1775945443427,-569.20510167,0.00015573,2]
[420303199,1775945443449,-500.75920658,0.00015573,2]
[420303202,1775945443462,-500.0,0.00015573,2]
[420303204,1775945443481,-516.17248608,0.00015573,2]
[420303207,1775945443502,-607.4248832,0.00015573,2]
[420303210,1775945443519,-500.0,0.00015573,2]
[420303212,1775945443532,-500.0,0.00015573,2]
[420303214,1775945443558,-313.00198222,0.00015573,2]
[420303216,1775945443571,-202.79128983,0.00015573,2]
[420303218,1775945443586,-162.87186259,0.00015573,2]
[420303219,1775945443628,-168.84012491,0.00015573,2]
[420303220,1775945443638,-500.0,0.00015573,2]
[420303221,1775945443659,-500.0,0.00015573,2]
[420303222,1775945443675,-388.98936582,0.0001559,2]
[420303223,1775945443684,-151.0,0.00015597,2]
[420303224,1775945443693,-666.0,0.00015599,2]
[420303225,1775945443711,-500.0,0.00015599,2]
[420303226,1775945443721,-500.0,0.00015599,2]
[420303227,1775945443731,-500.0,0.00015599,2]
[420303228,1775945443744,-500.0,0.00015599,2]
[420303229,1775945443760,-500.0,0.00015599,2]
[420303230,1775945443769,-500.0,0.00015599,2]
[420303231,1775945443781,-500.0,0.00015599,2]
[420303232,1775945443803,-500.0,0.00015599,2]
[420303233,1775945443812,-500.0,0.00015599,2]
[420303234,1775945443822,-500.0,0.00015599,2]
[420303235,1775945443847,-500.0,0.00015599,2]
[420303236,1775945443856,-500.0,0.00015599,2]
[420303237,1775945443869,-500.0,0.00015599,2]
[420303239,1775945443902,-500.0,0.00015599,2]
[420303241,1775945443911,-500.0,0.00015599,2]
[420303242,1775945443927,-500.0,0.00015599,2]
[420303244,1775945443936,-500.0,0.00015599,2]
[420303246,1775945443947,-500.0,0.00015599,2]
[420303248,1775945443962,-500.0,0.00015599,2]
[420303249,1775945443972,-500.0,0.00015599,2]
[420303250,1775945443982,-500.0,0.00015599,2]
[420303251,1775945443996,-500.0,0.00015599,2]
[420303252,1775945444006,-500.0,0.00015599,2]
[420303253,1775945444020,-500.0,0.00015599,2]
[420303254,1775945444029,-500.0,0.00015599,2]
[420303255,1775945444045,-423.46520535,0.00015599,2]
[420303256,1775945444068,-500.0,0.00015599,2]
[420303257,1775945444077,-500.0,0.00015599,2]
[420303258,1775945444097,-271.65524399,0.00015599,2]
[420303259,1775945444107,-500.0,0.00015599,2]
[420303260,1775945444117,-500.0,0.00015599,2]
[420303261,1775945444129,-500.0,0.00015599,2]
[420303262,1775945444138,-500.0,0.00015599,2]
[420303263,1775945444148,-500.0,0.00015599,2]
[420303264,1775945444159,-500.0,0.00015599,2]
[420303265,1775945444171,-214.03,0.00015599,2]
[420303266,1775945444181,-577.85,0.00015599,2]
[420303268,1775945444190,-577.85,0.00015599,2]
[420303270,1775945444204,-577.85,0.00015599,2]
[420303271,1775945444226,-577.85,0.00015599,2]
[420303272,1775945444236,-577.85,0.00015599,2]
[420303273,1775945444246,-577.85,0.00015599,2]
[420303274,1775945444266,-577.85,0.00015599,2]
[420303275,1775945444276,-577.85,0.00015599,2]
[420303276,1775945444286,-577.85,0.00015599,2]
[420303277,1775945444300,-500.0,0.00015599,2]
[420303278,1775945444314,-500.0,0.00015599,2]
[420303279,1775945444323,-500.0,0.00015599,2]
[420303280,1775945444333,-500.0,0.00015599,2]
[420303281,1775945444343,-500.0,0.00015599,2]
[420303282,1775945444357,-500.0,0.00015599,2]
[420303283,1775945444366,-500.0,0.00015599,2]
[420303284,1775945444378,-500.0,0.00015599,2]
[420303285,1775945444390,-500.0,0.00015599,2]
[420303286,1775945444415,-500.0,0.00015599,2]
[420303287,1775945444424,-500.0,0.00015599,2]
[420303288,1775945444439,-500.0,0.00015599,2]